Cogmind - Beta 13 X2 @@@ ROGUE MODE // 2023.12.26 @ 15:56:54 Player: f3-rnm Result: Destroyed by Y-54 Guardian with Flak Gun Performance ------------- Evolutions (3) 1500 Regions Visited (6) 1200 Robots Destroyed (128) 640 Value Destroyed (4305) 4305 Prototype IDs (17) 340 Alien Tech Used (0) 0 Bonus (94) 94 TOTAL SCORE: 8079 Bonus ------- High Alert Combat Kills 71 Follower Combat Kills 100 Friendly Fire -77 Cogmind --------- Core Integrity 0/700 Matter 157/300 Energy 290/290 System Corruption 24% Temperature Cool (12) Movement Walking (202) Ox1 Location -7/Storage Parts ------- > --- POWER (1) -------- Reinforced Deuterium Engine > --- PROPULSION (5) --- Aluminum Leg VSS Leg Light Armored Exoskeleton (fused) Flexi-carbon Leg > --- UTILITY (5) ------ Improved Heat Sink Huge Storage Unit Machine Analyzer Improved Medium Armor Plating > --- WEAPON (2) ------- Enhanced Autogun Mini Assault Cannon > --- INVENTORY (25) --- Cooled Ion Engine Light Nuclear Core Reinforced Deuterium Engine Micro Nuclear Core Improved Cesium-ion Thruster Cooled VTOL Module Cooled VTOL Module Improved Heat Sink Medium Storage Unit Advanced Targeting Computer Improved Melee Analysis Suite Target Analyzer Kinecellerator Enhanced Autogun Improved Light Cannon Flak Cannon Mini Assault Cannon Shock Bomb Launcher Proton Missile Launcher Impact Mace Peak State ------------ > --- POWER ------------ Reinforced Deuterium Engine > --- PROPULSION ------- Light Armored Exoskeleton Flexi-carbon Leg Flexi-carbon Leg Flexi-carbon Leg > --- UTILITY ---------- Improved Heat Sink Medium Storage Unit Machine Analyzer Improved Medium Armor Plating Improved Shield Generator > --- WEAPON ----------- Enhanced Autogun Mini Assault Cannon > --- INVENTORY -------- Cooled VTOL Module Cooled VTOL Module Advanced Targeting Computer Improved Melee Analysis Suite Target Analyzer Kinecellerator Improved Medium Armor Plating Enhanced Autogun Shock Bomb Launcher [Rating: 54] Favorites ----------- Power Ion Engine Engine Ion Engine Power Core Light Nuclear Core Propulsion Light Treads Treads Light Treads Leg Flexi-carbon Leg Wheel Compact Wheel Hover Unit Gravmag System Flight Unit Cooled VTOL Module Utility High-capacity Storage Unit Device Improved Heat Sink Storage High-capacity Storage Unit Processor Transport Network Coupler Protection Improved Light Armor Plating Weapon Pulse Rifle Energy Gun Pulse Rifle Energy Cannon Cooled Particle Cannon Ballistic Gun Enhanced Autogun Ballistic Cannon Battle Cannon Launcher Rocket Launcher Impact Weapon Heavy Flail Build | -11 -10 -10 -10 -8 -7 -7 ------- Run | Yrd Mat Min Sub Mat Fac Sto Slots Evolved 6 | . . . . 4 2 . Power . | . . . . . . . Propulsion 3 | . . . . 2 1 . Utility 3 | . . . . 2 1 . Weapon . | . . . . . . . Parts Attached 114 | 6 3 5 14 28 53 5 Power 14 | 1 . 1 . 5 7 . Engine 9 | 1 . 1 . 3 4 . Core 5 | . . . . 2 3 . Reactor . | . . . . . . . Propulsion 34 | 2 1 . 4 8 18 1 Treads 21 | 2 1 . 4 8 6 . Leg 9 | . . . . . 8 1 Wheel 2 | . . . . . 2 . Hover 1 | . . . . . 1 . Flight 1 | . . . . . 1 . Utility 27 | 1 1 1 3 8 11 2 Device 9 | . . 1 1 2 5 . Storage 5 | 1 1 . 1 . 1 1 Processor 3 | . . . . 1 2 . Hackware . | . . . . . . . Protection 10 | . . . 1 5 3 1 Artifact . | . . . . . . . Weapon 39 | 2 1 3 7 7 17 2 Energy Gun 9 | 1 1 1 2 2 2 . Energy Cannon 1 | . . . . . 1 . Ballistic Gun 10 | 1 . 1 . . 6 2 Ballistic Cannon 11 | . . 1 2 4 4 . Launcher 5 | . . . 3 1 1 . Special Weapon . | . . . . . . . Impact Weapon 3 | . . . . . 3 . Slashing Weapon . | . . . . . . . Piercing Weapon . | . . . . . . . Special Melee Weapon . | . . . . . . . Unidentified Prototypes 7 | . . . . 2 4 1 Corrupted Parts 1 | . . . . . 1 . System Corruption 1 | . . . . . 1 . Parts Lost 34 | . . 2 3 4 22 3 Power 4 | . . 1 . . 3 . Propulsion 15 | . . . 2 1 11 1 Utility 8 | . . . . 1 5 2 Weapon 7 | . . 1 1 2 3 . Highest Loss Streak 6 | . . 1 1 4 6 1 To Critical Strikes . | . . . . . . . Average Slot Usage (%) 90 | . 85 99 91 97 80 87 Engine 8 | . 14 13 14 4 3 7 Core 1 | . . . . 4 3 . Treads 25 | . 28 28 27 35 16 . Leg 3 | . . . . . 10 30 Device 7 | . . 13 5 9 7 10 Storage 8 | . 14 14 8 9 6 7 Processor 3 | . . . . 2 10 7 Protection 7 | . . . 5 13 4 7 Energy Gun 9 | . 21 20 13 8 . . Ballistic Gun 1 | . 6 1 . . 2 7 Ballistic Cannon 9 | . . 6 13 8 6 7 Naked Turns . | . . . . . . . Heaviest Build 114 | 10 46 53 55 77 65 114 Greatest Support 112 | 40 40 40 40 80 112 82 Greatest Overweight (x) 17 | . 1 1 1 1 17 1 Average Overweight (x) . | . . 1 . . . . Largest Inventory Capacity 25 | 8 20 20 20 20 20 25 Average Capacity 16 | 6 14 20 13 20 15 22 Most Carried 22 | 4 6 11 20 20 20 22 Average Carried 13 | 1 3 7 10 19 14 16 Final Capacity 25 | 8 20 20 20 20 10 25 Final Carried 20 | 2 6 11 20 20 10 20 Class Distribution -------------------- 44% | Mutant 28% | Scavenger-Mutant 26% | Subdweller-Mutant Dominant Class ---------------- Mutant | -10/Materials Mutant | -10/Mines Subdweller-Mutant | -10/Subcaves Mutant | -8/Materials Scavenger-Mutant | -7/Factory Scavenger-Mutant | -7/Storage Resources | -11 -10 -10 -10 -8 -7 -7 ----------- Run | Yrd Mat Min Sub Mat Fac Sto Matter Collected 3780 | 255 45 48 500 1026 1550 356 Remotely . | . . . . . . . Salvage Created 3861 | . 159 162 500 1298 1369 373 Parts 254 | . 14 7 36 110 72 15 Haulers Intercepted 7 | . 1 . . 4 1 1 Recyclers Shooed 2 | . . . . 1 1 . Parts Field Recycled . | . . . . . . . Retrieved Matter . | . . . . . . . Parts Self-Destructed 10 | . . . 10 . . . Prevented . | . . . . . . . Kills | -11 -10 -10 -10 -8 -7 -7 ------- Run | Yrd Mat Min Sub Mat Fac Sto Combat Hostiles Destroyed 95 | . 4 4 17 32 32 6 Melee 1 | . . . . . 1 . Guns 31 | . 4 4 5 9 6 3 Cannons 51 | . . . 10 17 21 3 AOE 10 | . . . 2 6 2 . Classes Destroyed 18 | . 3 . 3 6 6 . Worker 5 | . . . . 2 3 . Builder 7 | . . . . 5 2 . Tunneler 3 | . . . . . 3 . Hauler 7 | . 1 . . 4 1 1 Recycler 2 | . . . . . 1 1 Mechanic 1 | . . . . 1 . . Operator 3 | . . . . 2 1 . Watcher 5 | . . . . 4 1 . Swarmer 17 | . 3 . 4 10 . . Grunt 34 | . 1 4 . 13 14 2 Brawler 2 | . . . . . 2 . Duelist 2 | . . . . 2 . . Sentry 16 | . . . 1 7 5 3 Specialist 2 | . . . . . 2 . Programmer 9 | . . . . . 8 1 Heavy 1 | . . . . . 1 . Artisan 1 | . . . 1 . . . Subdweller 12 | . . . 12 . . . Best Kill Streak 8 | . 3 2 4 7 8 2 Combat Bots Only 6 | . 3 2 4 6 4 2 Max Kills in Single Turn 4 | . 1 1 2 4 4 2 Gunslinging . | . . . . . . . Exploded 4 | . . . 1 4 1 . Melee 1 | . . . . . 1 . Uniques/NPCs Destroyed . | . . . . . . . Combat | -11 -10 -10 -10 -8 -7 -7 -------- Run | Yrd Mat Min Sub Mat Fac Sto Hostile Shots Fired 879 | . 21 43 62 170 423 160 Missed 267 | . 9 10 18 53 126 51 Damage Taken 8468 | . 120 446 862 2035 4242 763 Core 920 | . 28 61 63 65 627 76 Absorbed by Shields 256 | . . . . . 152 104 Core Remaining (%) 75 | 100 . . 39 88 . . Volleys Fired 414 | 1 13 26 89 120 134 31 Largest 2 | 2 2 2 2 2 2 2 Hottest 111 | 60 90 90 107 111 95 73 Shots Fired 700 | 2 26 50 136 216 212 58 Gun 326 | 2 26 50 46 98 75 29 Cannon 363 | . . . 83 117 134 29 Launcher 11 | . . . 7 1 3 . Special . | . . . . . . . Kinetic 479 | 1 9 13 83 117 198 58 Thermal 202 | 1 17 37 46 98 3 . Explosive 11 | . . . 7 1 3 . Electromagnetic 8 | . . . . . 8 . Robot Hit Streak 19 | . 10 16 19 9 12 11 Robot Miss Streak 6 | . 1 4 2 3 6 2 Penetration Max . | . . . . . . . Secondary Targets . | . . . . . . . Shots Hit Robots 429 | . 20 36 49 127 159 38 Core Hits 230 | . 9 12 28 80 83 18 Critical Kills 1 | . . . . 1 . . Critical Parts Destroyed 5 | . . . . 4 1 . Critical Strikes 27 | . 1 . 2 12 12 . Burn 5 | . 1 . . 4 . . Destroy 5 | . . . . 5 . . Blast 16 | . . . 2 3 11 . Smash 1 | . . . . . 1 . Melee Attacks 29 | . . . . . 29 . Impact 29 | . . . . . 29 . Slashing . | . . . . . . . Piercing . | . . . . . . . Sneak Attacks 4 | . . . . . 4 . Combat Hostiles . | . . . . . . . Follow-up Attacks . | . . . . . . . Damage Inflicted 10964 | . 215 402 1094 3486 4909 858 Guns 3571 | . 215 402 354 1142 1067 391 Cannons 5351 | . . . 605 1834 2445 467 Explosions 1137 | . . . 135 506 496 . Melee 870 | . . . . . 870 . Ramming 35 | . . . . 4 31 . Kinetic 6881 | . 45 86 605 1834 3453 858 Thermal 2186 | . 170 316 354 1313 33 . Explosive 803 | . . . 135 172 496 . Electromagnetic 189 | . . . . 163 26 . Impact 870 | . . . . . 870 . Slashing . | . . . . . . . Piercing . | . . . . . . . Highest Corruption 24 | . . . . . 23 24 Average Corruption 12 | . . . . . 11 23 Corruption Purged . | . . . . . . . Corruption Blocked 16 | . . . . . 16 . Effects 118 | . . . . . 93 25 Message Errors 24 | . . . . . 16 8 Matter Fused 36 | . . . . . 34 2 Heat Flow Errors 7 | . . . . . 6 1 Energy Discharges 10 | . . . . . 7 3 Parts Rejected 1 | . . . . . 1 . Parts Fused 1 | . . . . . 1 . Data Loss (minor) 20 | . . . . . 17 3 Data Loss (major) 3 | . . . . . 2 1 Misfires 6 | . . . . . 4 2 Alerts 2 | . . . . . 1 1 Misdirections 2 | . . . . . 2 . Weapon Failures 6 | . . . . . 2 4 Overload Shots . | . . . . . . . Overflow Damage 407 | . . . 9 32 366 . Projectiles 85 | . . . . 23 62 . Explosions 39 | . . . 9 9 21 . Melee 283 | . . . . . 283 . Knockbacks 32 | . . . 2 8 21 1 Impact 1 | . . . . . 1 . Kinetic 30 | . . . 2 8 19 1 Secondary 1 | . . . . . 1 . Self-Inflicted Damage 170 | . . . 52 . 118 . Shots 5 | . . . 2 . 3 . Rammed 6 | . . . . 2 4 . Targets Rammed 6 | . . . . 2 4 . Kicked . | . . . . . . . Crushed . | . . . . . . . Highest Temperature 264 | 20 141 262 1 82 264 115 Average Temperature 51 | 15 44 118 1 25 60 21 Received Heat Transfer 2402 | . 36 291 147 711 978 239 Siege Activations . | . . . . . . . Robots Corrupted . | . . . . . . . Combat Hostiles . | . . . . . . . Parts Fried 3 | . . . . . 3 . Impact Corruptions 7 | . . . . . 7 . Robots Melted . | . . . . . . . Combat Hostiles . | . . . . . . . Parts Melted 8 | . 1 2 1 4 . . Heat Transferred 5144 | . 497 784 777 3012 74 . Parts Sabotaged . | . . . . . . . Parts Stolen . | . . . . . . . Parts Stripped . | . . . . . . . Power Chain Reactions 2 | . . . . 2 . . Missiles Intercepted . | . . . . . . . Alert | -11 -10 -10 -10 -8 -7 -7 ------- Run | Yrd Mat Min Sub Mat Fac Sto Peak Influence 481 | . 137 133 . 431 481 436 Initial 218 | . . 53 . . 188 218 Average 229 | . 87 57 . 284 230 300 Maximum Alert Level 2 | . . . . 2 2 2 Low Security (%) 37 | 100 100 100 . 25 31 . Level 1 53 | . . . . 57 63 88 Level 2 8 | . . . . 17 4 11 Level 3 . | . . . . . . . Level 4 . | . . . . . . . Level 5 . | . . . . . . . High Security . | . . . . . . . Max Security . | . . . . . . . Squads Dispatched 20 | . . 1 . 5 12 2 Investigation 3 | . . 1 . 2 . . Extermination 7 | . . . . . 6 1 Reinforcement 10 | . . . . 3 6 1 Assault . | . . . . . . . Garrison . | . . . . . . . Intercept . | . . . . . . . Searches Triggered . | . . . . . . . Construction Impeded . | . . . . . . . Haulers Reinforced 2 | . . . . . 2 . Active Scanning Responses . | . . . . . . . Cargo Convoy Interrupts 1 | . . . . . 1 . Stealth | -11 -10 -10 -10 -8 -7 -7 --------- Run | Yrd Mat Min Sub Mat Fac Sto Distress Signals 7 | . . . . 3 3 1 Communications Jammed . | . . . . . . . Distress Signals . | . . . . . . . Times Spotted 148 | . 8 4 21 61 45 9 Peak Tracking Total 6 | . 3 2 4 6 6 3 Tactical Retreats 10 | . 2 . 1 3 4 . Traps | -11 -10 -10 -10 -8 -7 -7 ------- Run | Yrd Mat Min Sub Mat Fac Sto Traps Triggered 2 | . 1 . . . 1 . Indirectly . | . . . . . . . Trap Hack Attempts . | . . . . . . . Triggered . | . . . . . . . Disarmed . | . . . . . . . Reprogrammed . | . . . . . . . Reused . | . . . . . . . Traps Extracted . | . . . . . . . Installed . | . . . . . . . Triggered 1 | . . . . . 1 . Machines | -11 -10 -10 -10 -8 -7 -7 ---------- Run | Yrd Mat Min Sub Mat Fac Sto Machines Disabled 9 | . . . 2 5 . 2 Max in Single Turn 2 | . . . 1 2 . 1 Machines Repaired . | . . . . . . . Machines Dismantled . | . . . . . . . Machines Sabotaged . | . . . . . . . Overloaded Fab Kills . | . . . . . . . Hacking | -11 -10 -10 -10 -8 -7 -7 --------- Run | Yrd Mat Min Sub Mat Fac Sto Machines Accessed 17 | . . 1 2 6 6 2 Terminals 12 | . . . . 6 4 2 Fabricators . | . . . . . . . Repair Stations . | . . . . . . . Recycling Units 1 | . . . . . 1 . Scanalyzers . | . . . . . . . Garrison Access 1 | . . . . . 1 . Total Hacks 43 | . . 1 3 22 13 4 Successful 13 | . . 1 3 6 3 . Failed 30 | . . . . 16 10 4 Catastrophic 8 | . . . . 4 4 . Database Lockouts . | . . . . . . . Manual 29 | . . . . 20 5 4 Terminals 33 | . . . . 22 7 4 Fabricators . | . . . . . . . Repair Stations . | . . . . . . . Recycling Units 4 | . . . . . 4 . Scanalyzers . | . . . . . . . Garrison Access 2 | . . . . . 2 . Terminal Hacks 12 | . . 1 3 6 2 . Record 2 | . . . 2 . . . Open Door 1 | . . 1 . . . . Branch Access Points 1 | . . . . . 1 . Recycling Unit Index 1 | . . . . 1 . . Alert Level 4 | . . . . 3 1 . Unreport Threat 1 | . . . . 1 . . Hauler Manifests 1 | . . . . 1 . . Derelict Proto ID Bank 1 | . . . 1 . . . Fabricator Hacks . | . . . . . . . Repair Station Hacks . | . . . . . . . Recycling Unit Hacks . | . . . . . . . Scanalyzer . | . . . . . . . Garrison Access Hacks . | . . . . . . . Unauthorized Hacks 1 | . . . . . 1 . Terminals . | . . . . . . . Fabricators . | . . . . . . . Repair Stations . | . . . . . . . Recycling Units 1 | . . . . . 1 . Mask 1 | . . . . . 1 . Scanalyzers . | . . . . . . . Garrison Access . | . . . . . . . Data Cores Recovered 1 | . . . . . 1 . Used . | . . . . . . . Hacking Detections 11 | . . . . 5 4 2 Full Trace Events 3 | . . . . 3 . . Feedback Events . | . . . . . . . Feedback Blocked . | . . . . . . . Robot Schematics Acquired . | . . . . . . . Robots Built . | . . . . . . . Authchips . | . . . . . . . Time . | . . . . . . . Total Robot Build Rating . | . . . . . . . Part Schematics Acquired . | . . . . . . . Parts Built . | . . . . . . . Authchips . | . . . . . . . Time . | . . . . . . . Total Part Build Rating . | . . . . . . . Parts Repaired . | . . . . . . . Time . | . . . . . . . Parts Recycled . | . . . . . . . Recycled Matter . | . . . . . . . Retrieved Matter . | . . . . . . . Retrieved Components . | . . . . . . . Parts Scanalyzed . | . . . . . . . Part Schematics Acquired . | . . . . . . . Parts Damaged . | . . . . . . . Bothacking | -11 -10 -10 -10 -8 -7 -7 ------------ Run | Yrd Mat Min Sub Mat Fac Sto Used RIF Installer . | . . . . . . . Robots Hacked . | . . . . . . . Non-combat . | . . . . . . . Combat . | . . . . . . . Robot Hacks Applied . | . . . . . . . Relay Couplers Released 6 | . . . . . 6 . Programmers 6 | . . . . . 6 . Fabnet Peak Effective % . | . . . . . . . Robots Rewired . | . . . . . . . Allies Hacked . | . . . . . . . Hacks Repelled . | . . . . . . . Allies | -11 -10 -10 -10 -8 -7 -7 -------- Run | Yrd Mat Min Sub Mat Fac Sto Total Allies 1 | . . . . . 1 . Largest Group 1 | . . . . . 1 . Highest-Rated Group 117 | . . . . . 117 . Highest-Rated Ally 117 | . . . . . 117 . Total Orders . | . . . . . . . Ally Attacks 6 | . . . . . 6 . Total Damage 150 | . . . . . 150 . Kills 2 | . . . . . 2 . Allies Corrupted . | . . . . . . . Allies Melted . | . . . . . . . Intel | -11 -10 -10 -10 -8 -7 -7 ------- Run | Yrd Mat Min Sub Mat Fac Sto Robot Analysis Total . | . . . . . . . Derelict Logs Recovered 3 | . . 1 2 . . . Drone Launches . | . . . . . . . Drone Recoveries . | . . . . . . . Exploration | -11 -10 -10 -10 -8 -7 -7 ------------- Run | Yrd Mat Min Sub Mat Fac Sto Turns Passed 12396 | 98 162 836 4738 2784 3328 450 Spaces Moved 5922 | 58 56 201 2191 1388 1841 187 Core 83 | 10 . . . . 73 . Treads 4687 | 48 56 201 2191 1388 803 . Legs 855 | . . . . . 668 187 Wheels 255 | . . . . . 255 . Hover 42 | . . . . . 42 . Flight . | . . . . . . . Fastest Speed 50 | 50 160 240 160 163 50 117 Average Speed 174 | 141 200 240 202 166 138 175 Slowest Speed 900 | 160 240 240 260 260 900 202 Overloaded Moves . | . . . . . . . Propulsion Burnouts . | . . . . . . . Robots Hopped . | . . . . . . . Cave-ins Triggered . | . . . . . . . Exploration Rate (%) 41 | 4 20 36 86 80 35 31 Regions Visited 6 Branch Regions 3 Pre-discovered Areas 2 | . . . 2 . . . Known Exits Taken 1 | . . . . . 1 . Unknown Exits Taken 5 | 1 1 1 1 1 . . Scrap Searched 14 | . . . 14 . . . Spaces Dug 45 | . . . 30 1 14 . Terrain Destroyed 156 | . . . 69 41 40 6 Melee 7 | . . . . . 7 . Projectile 61 | . . . 1 27 27 6 AOE 88 | . . . 68 14 6 . Terrain Rammed . | . . . . . . . Walls Destroyed . | . . . . . . . Machines Disabled . | . . . . . . . Actions | -11 -10 -10 -10 -8 -7 -7 --------- Run | Yrd Mat Min Sub Mat Fac Sto Total 7321 | 72 84 507 2358 1646 2391 263 Wait 590 | . 4 268 13 60 223 22 Move 5916 | 57 55 200 2190 1387 1840 187 Hop . | . . . . . . . Pick Up 140 | 8 7 8 28 21 53 15 Fast Attach 41 | . . . 3 11 27 . Attach 41 | 6 3 3 4 4 18 3 Detach 3 | . 1 . . . 2 . Swap 32 | . . 2 7 13 8 2 Drop 99 | . 1 . 15 27 53 3 Fire 414 | 1 13 26 89 120 134 31 Melee 29 | . . . . . 29 . Ram 3 | . . . . . 3 . Kick . | . . . . . . . Crush 3 | . . . . 2 1 . Escape Stasis . | . . . . . . . Rewire . | . . . . . . . Trap . | . . . . . . . Miscellaneous 10 | . . . 9 1 . . Route ------- -11/Scrapyard -10/Materials -10/Mines (discovered 2 exits: [*Mat] / *Sub) -10/Subcaves (discovered 2 exits: *Mat / [*Rec]) -8/Materials (discovered 2 exits: *Fac x2) -7/Factory (discovered 3 exits: *Sto / Low x2) -7/Storage History --------- Turn | Location | Event 6 | -11/Scrapyard | Discovered new exit (range 15) 99 | -11/Scrapyard | Entered Materials 191 | -10/Materials | Discovered new exit (range 14) 261 | -10/Materials | Entered Mines 307 | -10/Mines | Build established: Mutant 391 | -10/Mines | Discovered new exit (range 11) 401 | -10/Mines | Learned Materials trap positions 504 | -10/Mines | Received a Rocket Launcher from a helpful Derelict 667 | -10/Mines | Met a Derelict shopkeep closing up shop 1078 | -10/Mines | Discovered new exit (range 4) 1097 | -10/Mines | Entered Subcaves 1102 | -10/Subcaves | Shifting Twisted Machinery released Battle Rifle 1121 | -10/Subcaves | Shifting Twisted Machinery released Flamer 1527 | -10/Subcaves | Disturbed a concealed Subdweller 2117 | -10/Subcaves | Visited Clippyterm 2464 | -10/Subcaves | Discovered new exit (range 5) 2834 | -10/Subcaves | Build established: Subdweller-Mutant 3040 | -10/Subcaves | Shifting Twisted Machinery released Flamer 3048 | -10/Subcaves | Shifting Twisted Machinery released Ripper 3058 | -10/Subcaves | Discovered new exit (range 12) 3228 | -10/Subcaves | A swath of the cavern ceiling suddenly collapsed 3302 | -10/Subcaves | A Subdweller sparked back to life 3302 | -10/Subcaves | A Subdweller sparked back to life 3302 | -10/Subcaves | A Subdweller sparked back to life 3308 | -10/Subcaves | Core integrity fell below 50% 3324 | -10/Subcaves | Found Prototype Power Core 3394 | -10/Subcaves | Shifting Twisted Machinery released Battle Cannon 3400 | -10/Subcaves | Shifting Twisted Machinery released Riot Gun 3487 | -10/Subcaves | Disturbed a concealed Subdweller 3530 | -10/Subcaves | Learned location of Mines (-10) 3565 | -10/Subcaves | Learned Materials terminal intel 3817 | -10/Subcaves | Learned location of Zion (-6) 3817 | -10/Subcaves | Met a Zionite searching for "candidates" 3866 | -10/Subcaves | Visited 4L-MR0's lab 3884 | -10/Subcaves | Identified Meta Core 5162 | -10/Subcaves | Found Lrg. Botcube 5183 | -10/Subcaves | Found Arachnoskeleton 5835 | -10/Subcaves | Entered Materials 5835 | -8/Materials | Evolved 4 slots: Propulsion x2, Utility x2 5836 | -8/Materials | Loaded intel: 4 trap records 5837 | -8/Materials | Loaded intel: 12 terminal locations 6310 | -8/Materials | Discovered new exit (range 5) 6430 | -8/Materials | Build established: Mutant 7056 | -8/Materials | Lost 4 parts (1n1u2w) 7733 | -8/Materials | Discovered new exit (range 14) 8162 | -8/Materials | Build established: Scavenger-Mutant 8619 | -8/Materials | Entered Factory 8619 | -7/Factory | Evolved 2 slots: Propulsion x1, Utility x1 9363 | -7/Factory | Lost 3 parts (2n1w) 9659 | -7/Factory | Build established: Mutant 9833 | -7/Factory | Lost 3 parts (1n2u) 10146 | -7/Factory | Lost 6 parts (1p3n1u1w) 10198 | -7/Factory | System corruption reached 10% 10337 | -7/Factory | Cargo convoy interrupted 10533 | -7/Factory | Build established: Scavenger-Mutant 10619 | -7/Factory | Lost 4 parts (1p2n1w) 10722 | -7/Factory | Core integrity fell below 50% 10733 | -7/Factory | Lrg. Botcube activated 10771 | -7/Factory | Lrg. Botcube completed mutation into legged form, armed with 2 guns, 2 cannons. 11084 | -7/Factory | Core integrity fell below 20% 11381 | -7/Factory | Identified exit to Storage 11381 | -7/Factory | Identified exit to Lower Caves 11947 | -7/Factory | Entered Storage 12397 | -7/Storage | Destroyed by Y-54 Guardian with Flak Gun Last Messages --------------- 12256_ Acquired 39 matter. 12257_ R-06 Scavenger collects Prototype Ballistic Gun. 12260_ Acquired 5 matter. 12261_ 2 XUX8%&MCOXQ0AUSVXLAOPV|9N4,OWN 12261_ R-06 Scavenger collects Prototype Ballistic Gun. 12265_ Imp. Medium Armor Plating destroyed. 12288_ System corrupted: Mni. Assault Cannon jammed. 12293_ System corrupted: IFF burst signal emitted. 12295_ R-06 Scavenger collects Prototype Ballistic Gun. 12295_ Y-54 Guardian destroyed. 12296_ U-05 Engineer builds a Wall. 12309_ System corrupted: Component data lost. 12317_ Flexi-carbon Leg destroyed. 12324_ System corrupted: Energy discharge (-81). 12330_ Y-54 Guardian destroyed. 12341_ U-05 Engineer builds a Door. 12361_ System corrupted: Component data lost. 12377_ P WEWSZTBLFNN&5M& RXE14SW 12383_ K-01 Serf sends out distress signal. 12392_ KTRAKXDKTZLL|SJY WP I HU:H1 Map ----- +----------------------------------------------------+ | ?????????????????????????????????? | | ?????????????????????????????????? | | ?????????????????????????????????? | | ?????????????????????????????????? | | ?????????????????????????????????? | | ?????????????????????????????????? | | ?????????????????????????????????? | | ?????????????????????????????????? | | ?????????????????????????????????? | | ?????????????????????????????????? | | ????????? ???????????????????????? | | ????????? ???????????????????????? | | ????????? ???????????????????????? | | ????????? ???????????????????????? | | ????????? ???????????????????????? | | ????????? ???????????????????????? | | ????????? ???????????????????????? | | ????????# #??????????????????????? | | ????????# #??????????????????????? | | ????????# +??????????????????????? | | ????????# #??????????????????????? | | ????????# #?????????????????????"" | | ?#####??# #?????????????????????"" | | ?# !% ?#k#?????????????????????"" | | ?#! # #??????????????????"???? | | ?# /@#??????????????????T??"" | | ?# # #?????????"""??????"??"" | | ?# ;Y#### ! R"?????????"" | | ?# ] #% / """??????????? | | ?######## # #???????????"Y | | ????????#k #??????????????????"" | | ????????# ##+#????????????????? | | ????????# ^ #???#????????????? | | ????????# #? """??????????? | | ????????# # """??????????? | | ????????# # """ ?????????? | | ???????## # #######+## | | # + +?? " % | | # #######+## #????#### = | | ???????# # ###### | | ???????# """" + | | ???????# """" ######## #####+### | | ???????# """" #??????#####???# ? | | ???????? """" #??????????????# # | | ???????? ???????????????# # | | ????????######????????????????#### | | ?????????????????????????????????? | | | | | | | +----------------------------------------------------+ Best States ------------- Heat Dissipation 48 Energy Generation 16 Energy Capacity 290 Matter Stores 300 Matter Capacity 300 Sight Range 16 Terrain Scan Density 10 Armor Coverage 800 Weapon Cycling 15 Evasion (%) 59 Target Analysis 5 Recoil Reduction 5 Item Schematics ----------------- None Robot Schematics ------------------ None Fabricated ------------ Nothing Alien Tech Used ----------------- None Achievements -------------- None Challenges ------------ None Game ------ Seed AccelerationFortressSink Manual? 0 Play Time 01:02:33 Cumulative 135.3 hours Start 2023.12.26 @ 14:53:23 End 2023.12.26 @ 15:56:54 Sessions 1 Manual Loads 0 Difficulty Rogue Special Mode None Game No. 152 Rogue 116 Adventurer 36 Explorer 0 Win Type - Total 8 Types 2/0/6/0/0/0/0/0/0 Lore% 54 Gallery% 77 Achievement% 64 Wizard Run 0 Options --------- ASCII 0 Keyboard 0 Movement Mouse Keybinds 0 Fullscreen 1 Font 18/SmallcapsGlow Map View 76x50 Zoom Use 0% Tactical HUD 1 Map Filters NONE Filters NONE Steam 1 RUN: 45c36f72-50e4-48a2-b14c-60d76960b8a1